[Event "US Masters 2022"]
[Site "Charlotte"]
[Date "2022.11.26"]
[Round "5.8"]
[White "Chandra, Akshat"]
[Black "Liang, Awonder"]
[Result "0-1"]
[ECO "C77"]
[WhiteElo "2472"]
[BlackElo "2630"]
[Annotator "TA"]
[PlyCount "78"]
[EventDate "2022.11.23"]
[EventType "swiss"]
[EventCountry "USA"]
[SourceTitle "playchess.com"]
[Source "ChessBase"]
[SourceQuality "1"]
[TimeControl "5400+30"]

{[%evp 16,78,12,6,7,19,25,25,19,27,35,19,36,0,0,-15,-10,-11,-17,-15,-11,-12,-13,-20,-20,-66,-35,-60,-65,-65,-67,-68,-67,-68,-67,-67,-49,-62,-62,-85,-54,-54,-27,-50,-45,-40,-40,-54,-53,-53,-53,-53,-49,-51,-29,-89,-102,-94,-82,-101,-85,-29991,-29992,-29995,-29996]} 1. e4 {[%emt 0:06:17]} e5 {[%emt 0:00:04]} 2. Nf3 {[%emt 0:00:43]} Nc6 {[%emt 0:00:01]} 3. Bb5 {[%emt 0:00:11][%cal Bf1b5,Bb5a4,Ba4b3][%mdl 32]} a6 {[%emt 0:00:06]} 4. Ba4 {[%emt 0:00:03]} Nf6 {[%emt 0:00:08]} 5. O-O {[%emt 0:00:07]} Be7 {[%emt 0:00:05]} 6. d3 {[%emt 0:00:45]} b5 {[%emt 0:00:17]} 7. Bb3 {[%emt 0:00:02]} d6 {[%emt 0:00:11]} 8. a3 {[%emt 0:00:10]} O-O {[%emt 0:00:23]} 9. Nc3 {[%emt 0:00:04]} Be6 {[%emt 0:00:13] C77: Ruy Lopez: 3...a6 4 Ba4 Nf6, unusual lines.} 10. Nd5 {[%emt 0:00:46]} Bxd5 {[%emt 0:00:10]} 11. exd5 {[%emt 0:02:52]} Nd4 {[%emt 0:00:01] White has an edge.} 12. Nxd4 {[%emt 0:12:17]} exd4 {[%emt 0:00:02] [#]} 13. Bg5 $146 {[%emt 0:00:09]} ({Predecessor:} 13. c3 dxc3 14. bxc3 Nd7 15. d4 Nb6 16. a4 Bf6 17. Qd3 Qd7 18. axb5 axb5 19. Ba3 g6 20. Bb4 Kg7 21. Rfb1 {½-½ (21) Gharamian,T (2655)-Sokolov,I (2650) Saint Quentin 2014}) 13... h6 {[%emt 0:03:50]} 14. Bxf6 {[%emt 0:06:41]} Bxf6 {[%emt 0:00:06]} 15. Qg4 {[%emt 0:00:24]} g6 {[%emt 0:04:56]} 16. a4 {[%emt 0:00:44]} h5 {[%emt 0:01:46]} 17. Qh3 {[%emt 0:04:43]} Rb8 {[%emt 0:01:46]} 18. axb5 {[%emt 0:03:59]} axb5 {[%emt 0:00:06]} 19. Rfe1 {[%emt 0:00:13]} Kg7 {[%emt 0:04:15]} 20. g3 {[%emt 0:00:51]} (20. f4 $11 {was preferrable.}) 20... Re8 {[%emt 0:02:45]} 21. Rxe8 {[%emt 0:08:06]} Qxe8 {[%emt 0:00:03]} 22. Kf1 {[%emt 0:01:20]} h4 {[%emt 0:10:09]} 23. Re1 {[%emt 0:02:27]} Qh8 {[%emt 0:01:12]} 24. Kg2 {[%emt 0:09:50]} Qh5 {[%emt 0:18:08]} 25. f4 {[%emt 0:10:08]} g5 {[%emt 0:02:57]} 26. fxg5 {[%emt 0:02:41]} Qxg5 {[%emt 0:07:00]} 27. Kf3 {[%emt 0:03:31]} Be5 {[%emt 0:09:28]} 28. gxh4 {[%emt 0:16:09]} (28. Qxh4 $2 {too greedy.} Qf5+ 29. Ke2 (29. Kg2 $2 Rh8 $19) 29... Re8 $19) 28... Qf6+ {[%emt 0:05:07]} 29. Kg2 {[%emt 0:01:45]} Kh8 {[%emt 0:02:13][%cal Oe5h2]} 30. Kh1 {[%emt 0:02:28]} Rg8 {[%emt 0:01:25][%cal Oe5h2]} 31. Rg1 {[%emt 0:00:27]} Rxg1+ {[%emt 0:02:17]} (31... Qf4 {with more complications.} 32. Rxg8+ Kxg8 33. Kg2 Kh7) 32. Kxg1 $15 {[%emt 0:00:01][%mdl 4096] Endgame KQB-KQB} Bf4 {[%emt 0:02:39]} 33. Kg2 {[%emt 0:03:36]} Qg6+ {[%emt 0:01:21][%mdl 1024] Black has compensation.} (33... Bc1 {simplifies} 34. Qf3 Kg7 35. Qxf6+ Kxf6 36. Kf3 Bxb2 37. Kf4 Bc1+) 34. Kf3 {[%emt 0:01:37]} Be3 {[%emt 0:00:20]} 35. Qc8+ {[%emt 0:01:21]} (35. Qg3 $11) 35... Kh7 $17 {[%emt 0:00:16]} 36. Qg4 {[%emt 0:00:19]} Qf6+ {[%emt 0:00:05]} 37. Ke4 {[%emt 0:00:10]} Kh6 {[%emt 0:02:15] ( -> ...Qf2)} 38. h3 $2 {[%emt 0:00:59][%mdl 8192] [#]} (38. c3 $17) 38... Qf2 $1 {[%emt 0:10:22]} 39. c4 {[%emt 0:00:05]} Bd2 {[%emt 0:01:04] Weighted Error Value: White=0.23 (precise) /Black=0.07 (flawless)} ({Not} 39... Qxb2 40. Bd1 Qh2 41. Qf5 $11) 0-1

[Event "US Masters 2022"]
[Site "Charlotte"]
[Date "2022.11.26"]
[Round "5.9"]
[White "Escalante Ramirez, Brian Sebasti"]
[Black "Antipov, Mikhail Al."]
[Result "0-1"]
[ECO "C28"]
[WhiteElo "2468"]
[BlackElo "2608"]
[Annotator "TA"]
[PlyCount "90"]
[EventDate "2022.11.23"]
[EventType "swiss"]
[EventCountry "USA"]
[SourceTitle "playchess.com"]
[Source "ChessBase"]
[SourceQuality "1"]
[TimeControl "5400+30"]

{[%evp 9,90,-11,0,0,0,0,0,0,1,0,10,0,23,31,17,21,48,48,55,64,65,66,63,59,69,64,56,65,66,52,60,38,47,31,44,21,5,21,20,9,14,0,0,0,0,0,0,0,0,0,0,0,0,0,0,0,0,-66,-88,-225,-218,-302,-210,-216,-207,-233,-241,-217,-196,-196,-191,-483,-515,-503,-356,-1507,-750,-745,-743,-727,-727,-685,-676]} 1. e4 {[%emt 0:01:29]} e5 {[%emt 0:05:42]} 2. Nc3 {[%emt 0:00:07]} Nc6 {[%emt 0:00:06]} 3. Bc4 {[%emt 0:00:04]} Nf6 {[%emt 0:00:11]} 4. d3 {[%emt 0:00:05]} Na5 {[%emt 0:04:59]} 5. Qf3 {[%emt 0:00:03]} d6 {[%emt 0:02:45]} 6. Nge2 {[%emt 0:08:39] C28: Vienna Game: 2...Nf6 3 Bc4 Nc6.} Be7 {[%emt 0:08:56]} 7. O-O {[%emt 0:03:57]} O-O {[%emt 0:04:13]} 8. a4 {[%emt 0:00:40] [#] The position is equal.} Bg4 $146 {[%emt 0:10:40]} ({Predecessor:} 8... Nxc4 9. dxc4 Be6 10. b3 Nd7 11. Ng3 c6 12. Be3 g6 13. Bh6 Re8 14. Rad1 Qc7 15. Nf5 gxf5 16. Qg3+ {1-0 (16) Mekhitarian,K (2554)-Palchuk,A (2174) Chess.com INT 2021}) 9. Qe3 {[%emt 0:00:11]} Nxc4 {[%emt 0:00:47]} 10. dxc4 {[%emt 0:00:03]} c6 {[%emt 0:00:07]} 11. h3 {[%emt 0:08:46]} Be6 {[%emt 0:02:01]} 12. b3 {[%emt 0:00:02]} a5 {[%emt 0:02:42]} 13. Ba3 {[%emt 0:07:37]} Qc7 {[%emt 0:03:02]} 14. f4 {[%emt 0:07:42]} exf4 {[%emt 0:00:41]} 15. Nxf4 {[%emt 0:00:02]} Rae8 {[%emt 0:03:10]} 16. Rad1 {[%emt 0:00:43]} Bc8 {[%emt 0:08:20]} 17. Qd4 {[%emt 0:09:56]} Rd8 {[%emt 0:07:18]} 18. Bb2 {[%emt 0:00:01][%cal Of4d5]} Ne8 {[%emt 0:00:27][%cal Bf6e8,Be8g7,Bg7e6,Be6c5][%mdl 32]} 19. Nh5 {[%emt 0:01:34][%cal Oh5g7]} f6 {[%emt 0:00:15]} 20. Kh1 {[%emt 0:10:54]} Rf7 {[%emt 0:02:26]} 21. Qe3 {[%emt 0:05:18]} g6 {[%emt 0:03:18]} 22. Ng3 {[%emt 0:02:59]} Ng7 {[%emt 0:00:51]} 23. Nce2 {[%emt 0:00:25]} Ne6 {[%emt 0:01:35]} 24. Nf4 {[%emt 0:01:49]} (24. h4 {feels hotter.} Nc5 25. h5 Bg4 26. Rf4) 24... Nc5 {[%emt 0:04:58]} 25. Rf2 {[%emt 0:01:26]} Bf8 {[%emt 0:04:31]} 26. Nd3 {[%emt 0:12:49]} Nd7 {[%emt 0:01:15]} 27. Rdf1 {[%emt 0:00:01][%cal Rb2f6]} Bg7 {[%emt 0:00:50]} 28. Qa7 {[%emt 0:01:38]} Rdf8 {[%emt 0:03:59]} 29. Rf3 {[%emt 0:00:51]} Qd8 {[%emt 0:02:57] White must now prevent ...b6.} 30. Qf2 {[%emt 0:05:26]} b6 {[%emt 0:02:13]} 31. Ba3 {[%emt 0:05:34]} c5 {[%emt 0:02:22][%cal Of6f5]} 32. Bb2 {[%emt 0:00:54]} Bh6 {[%emt 0:02:36]} 33. Nf4 {[%emt 0:01:04]} (33. Kg1 $11) 33... Ne5 $15 {[%emt 0:01:04]} 34. Re3 {[%emt 0:00:04] [#] This costs White the game.} (34. Rc3 $17) 34... f5 $1 $19 {[%emt 0:01:05]} 35. exf5 {[%emt 0:01:55]} Bxf5 {[%emt 0:00:28]} 36. Qe1 {[%emt 0:02:56]} Bd7 {[%emt 0:04:19][%cal Bf5d7,Bd7c6,Bc6d5][%mdl 32]} ({Weaker is} 36... Bxc2 37. Ne6 Rxf1+ 38. Nxf1 Rxf1+ 39. Qxf1 $11) 37. Rxe5 {[%emt 0:00:01]} dxe5 {[%emt 0:00:38]} ({Not} 37... Bxf4 38. Re2 $11) 38. Nd5 {[%emt 0:00:02]} Rxf1+ {[%emt 0:00:44]} 39. Nxf1 {[%emt 0:00:01] Pair of Knights!} Bc6 {[%emt 0:01:29]} 40. Ng3 $2 {[%emt 0:02:10]} (40. Nfe3 {was worth a try.}) 40... Bxd5 {[%emt 0:00:00]} 41. Qxe5 {[%emt 0:00:04] [#] aiming for Qh8+.} Bxg2+ {[%emt 0:00:00]} 42. Kh2 $2 {[%emt 0:00:02]} (42. Kxg2 Qd2+ 43. Ne2 Qg5+ 44. Ng3) 42... Kf7 {[%emt 0:00:38] Hoping for ...Re8. Black is clearly winning.} 43. Kxg2 {[%emt 0:01:22]} Re8 {[%emt 0:00:29]} 44. Qd5+ {[%emt 0:00:30]} Qxd5+ {[%emt 0:00:02]} 45. cxd5 {[%emt 0:00:02]} Bf4 {[%emt 0:00:06] Weighted Error Value: White=0.35/Black=0.27 (precise)} 0-1

[Event "US Masters 2022"]
[Site "Charlotte"]
[Date "2022.11.26"]
[Round "5.10"]
[White "Theodorou, Nikolas"]
[Black "Bora, Safal"]
[Result "1/2-1/2"]
[ECO "B36"]
[WhiteElo "2598"]
[BlackElo "2446"]
[Annotator "TA"]
[PlyCount "155"]
[EventDate "2022.11.23"]
[EventType "swiss"]
[EventCountry "USA"]
[SourceTitle "playchess.com"]
[Source "ChessBase"]
[SourceQuality "1"]
[TimeControl "5400+30"]

{[%evp 18,155,44,39,44,47,50,27,24,19,43,0,17,0,0,0,17,0,0,0,0,0,0,0,15,15,18,18,31,30,31,31,31,30,36,35,47,40,56,52,52,52,52,52,52,52,79,79,79,54,79,79,79,79,79,79,94,79,79,60,82,74,98,98,98,98,98,98,98,98,98,98,98,98,101,87,87,78,106,106,291,268,270,270,196,74,74,62,75,75,2000,1264,1920,1738,2030,1855,1621,1439,1179,29,29,50,50,8,8,8,8,8,8,8,8,8,8,8,8,8,8,8,8,8,8,8,8,0,0,0,0,0,0,0,0,0,0,0,8,8,8,8,8,0]} 1. Nf3 {[%emt 0:06:46]} Nf6 {[%emt 0:00:21]} 2. c4 {[%emt 0:00:37]} c5 {[%emt 0:00:17]} 3. Nc3 {[%emt 0:02:08]} g6 {[%emt 0:00:39]} 4. e4 {[%emt 0:03:07]} Nc6 {[%emt 0:01:49]} 5. d4 {[%emt 0:02:22]} cxd4 {[%emt 0:00:10]} 6. Nxd4 {[%emt 0:00:07]} Nxd4 {[%emt 0:01:18]} 7. Qxd4 {[%emt 0:00:03]} d6 {[%emt 0:00:14]} 8. Be2 {[%emt 0:06:54]} Bg7 {[%emt 0:00:48]} 9. Be3 {[%emt 0:00:23]} O-O {[%emt 0:01:55]} 10. Qd2 {[%emt 0:00:19]} a5 {[%emt 0:01:08][%cal Ba7a5,Ba5a4][%mdl 32] B36: Sicilian: Maroczy Bind: Gurgenidze System.} 11. O-O {[%emt 0:02:59]} a4 {[%emt 0:01:46]} 12. f3 {[%emt 0:08:19] 12.Bd4 is the fancy move.} Qa5 {[%emt 0:02:06] White has an edge.} 13. Rab1 {[%emt 0:05:48]} Be6 {[%emt 0:01:19]} 14. Rfc1 {[%emt 0:01:03]} (14. Bd4 {feels hotter.} Nd7 15. Bxg7 Kxg7 16. b4) 14... Rfc8 {[%emt 0:01:54]} 15. b4 {[%emt 0:07:38]} axb3 {[%emt 0:01:06]} 16. axb3 {[%emt 0:00:03]} Qb4 {[%emt 0:01:06]} 17. Kf1 {[%emt 0:00:33]} Nd7 {[%emt 0:05:43]} 18. Nd5 {[%emt 0:03:20]} Qxd2 {[%emt 0:00:22]} 19. Bxd2 {[%emt 0:00:03]} Kf8 {[%emt 0:10:44] [#]} 20. b4 $146 {[%emt 0:10:01]} ({Predecessor:} 20. Bg5 f6 21. Be3 f5 22. Nf4 Bf7 23. exf5 gxf5 24. Nd5 b5 25. Rd1 bxc4 26. bxc4 Rab8 {½-½ (26) Dolezal,C (2389)-Mekhitarian,K (2544) Buenos Aires 2017}) 20... Ra2 {[%emt 0:03:56]} 21. Bg5 {[%emt 0:01:45]} Bxd5 {[%emt 0:05:25]} 22. cxd5 {[%emt 0:01:54][%cal Rc1c8] [#]} Rxc1+ {[%emt 0:01:41]} 23. Rxc1 {[%emt 0:00:30][%cal Rc1c8]} Ra1 {[%emt 0:00:06]} 24. Rxa1 {[%emt 0:02:17]} Bxa1 $14 {[%emt 0:00:09][%mdl 4096] Endgame KBB-KBN} 25. Bd2 {[%emt 0:00:02]} Bd4 {[%emt 0:03:36]} 26. Bb5 {[%emt 0:01:54]} Ke8 {[%emt 0:00:55]} 27. Ke2 {[%emt 0:00:26]} Kd8 {[%emt 0:00:25]} 28. g4 {[%emt 0:04:23]} Bg1 {[%emt 0:04:34]} 29. h4 {[%emt 0:02:28]} Bd4 {[%emt 0:00:47]} 30. g5 {[%emt 0:02:55]} Ne5 {[%emt 0:01:57]} 31. Be1 {[%emt 0:01:07]} Nd7 {[%emt 0:01:09]} 32. f4 {[%emt 0:00:19]} Bb2 {[%emt 0:01:32]} 33. Kd3 {[%emt 0:07:37]} Ba1 {[%emt 0:03:01]} 34. Bf2 {[%emt 0:00:40]} Bb2 {[%emt 0:00:21]} 35. Kc2 {[%emt 0:00:55]} Ba1 {[%emt 0:01:10]} 36. Be2 {[%emt 0:00:21]} Kc7 {[%emt 0:01:04]} 37. Kb3 {[%emt 0:02:32]} Kd8 {[%emt 0:00:21]} 38. h5 {[%emt 0:00:52]} Kc7 {[%emt 0:00:43]} 39. h6 {[%emt 0:01:23]} Kd8 {[%emt 0:02:19]} 40. Be3 {[%emt 0:01:22]} Kc7 {[%emt 0:03:04]} 41. Bb5 {[%emt 0:00:42]} Bh8 {[%emt 0:00:56]} 42. Kc4 {[%emt 0:01:13] Bd4 is the strong threat. White is more active.} Bb2 {[%emt 0:00:21]} 43. Kd3 {[%emt 0:00:18]} Kd8 {[%emt 0:00:32]} 44. Kc2 {[%emt 0:01:13]} Ba1 {[%emt 0:00:12]} 45. Ba4 {[%emt 0:00:58]} Bh8 {[%emt 0:00:30]} 46. Bd2 {[%emt 0:00:57]} Bd4 {[%emt 0:00:17]} 47. Kd3 {[%emt 0:00:14]} Bb2 {[%emt 0:00:12]} 48. Be3 {[%emt 0:01:02]} Ba1 $2 {[%emt 0:00:35] [#]} (48... Kc7 $16 49. Bd1 Ba1) 49. Bd4 $1 $18 {[%emt 0:01:33]} Bxd4 {[%emt 0:00:07]} 50. Kxd4 {[%emt 0:00:03] aiming for Bxd7. KB-KN} Nb6 {[%emt 0:25:17]} 51. Bd1 {[%emt 0:00:22]} (51. Bc2 $18 {has better winning chances.}) 51... Ke8 $16 {[%emt 0:01:45]} 52. Bg4 {[%emt 0:00:31]} Kf8 {[%emt 0:00:29]} 53. e5 {[%emt 0:02:11]} f5 $2 {[%emt 0:01:23][%mdl 8192]} (53... Kg8 $16) 54. gxf6 $18 {[%emt 0:04:40]} ({Not} 54. exf6 exf6 55. Be2 (55. gxf6 Kf7 $14) 55... fxg5 56. fxg5 Ke7 $14) 54... exf6 {[%emt 0:00:07]} 55. exd6 {[%emt 0:00:14] Strongly threatening Be6.} Ke8 {[%emt 0:01:50]} 56. Be6 {[%emt 0:00:53]} Nd7 {[%emt 0:00:37]} 57. Kc4 {[%emt 0:01:19]} Kd8 {[%emt 0:01:38]} 58. Bf7 $2 {[%emt 0:01:08]} (58. Kb5 $18 {And now Ka5 would win.} Kc8 59. Ka5) 58... g5 $11 {[%emt 0:00:19]} 59. Bg8 {[%emt 0:01:05]} gxf4 {[%emt 0:01:13]} 60. Bxh7 {[%emt 0:00:51]} Ne5+ {[%emt 0:00:01] The position is equal.} 61. Kd4 {[%emt 0:00:19] White wants to mate with Bf5.} Nf7 {[%emt 0:00:14]} 62. Bf5 {[%emt 0:00:44] White threatens h7 and mate.} Nxh6 {[%emt 0:00:23]} 63. Be6 {[%emt 0:00:17] Threatens to win with Ke4.} f5 {[%emt 0:02:18]} 64. Kd3 {[%emt 0:00:07]} Ng4 {[%emt 0:01:59]} 65. Bxf5 {[%emt 0:00:13]} Ne5+ {[%emt 0:00:08]} 66. Ke4 {[%emt 0:00:55]} Nc4 {[%emt 0:00:08]} 67. d7 {[%emt 0:00:43]} (67. Kxf4 {simplifies} Nxd6 68. Ke5 Ke7 69. Be6) 67... Ne3 {[%emt 0:01:07]} 68. Bh3 {[%emt 0:00:02]} Nc2 {[%emt 0:00:28]} 69. b5 {[%emt 0:00:02]} (69. Kxf4 {simplifies} Nxb4 70. Ke5 Na2 71. Bf1) 69... Na3 {[%emt 0:00:15]} (69... f3 {is more complex.} 70. Kxf3 Nd4+ 71. Ke4 Nxb5 72. Be6 Nc3+) 70. Bf1 {[%emt 0:00:31] Bd3 would kill now.} Kxd7 {[%emt 0:01:46]} 71. Kxf4 {[%emt 0:01:01]} Kd6 {[%emt 0:00:57]} 72. Ke4 {[%emt 0:00:06] Intending Bd3 and mate.} Nb1 {[%emt 0:00:45] ( -> ...Nd2+)} 73. Kd3 {[%emt 0:01:21] Inhibits Nd2.} Kxd5 {[%emt 0:00:10]} 74. Kc2 {[%emt 0:00:30]} Na3+ {[%emt 0:00:04]} 75. Kb3 {[%emt 0:00:03]} Nxb5 {[%emt 0:00:22]} 76. Bxb5 {[%emt 0:00:03]} Kc5 {[%emt 0:00:05]} 77. Bf1 {[%emt 0:00:14]} b5 {[%emt 0:00:03]} 78. Bxb5 {[%emt 0:00:04] Blacks defense is rewarded with a draw.   Weighted Error Value: White=0.24 (precise) /Black=0.09 (flawless)} 1/2-1/2

[Event "US Masters 2022"]
[Site "Charlotte"]
[Date "2022.11.26"]
[Round "5.11"]
[White "Raja Harshit"]
[Black "Burke, John M"]
[Result "0-1"]
[ECO "C89"]
[WhiteElo "2461"]
[BlackElo "2580"]
[Annotator "TA"]
[PlyCount "64"]
[EventDate "2022.11.23"]
[EventType "swiss"]
[EventCountry "USA"]
[SourceTitle "playchess.com"]
[Source "ChessBase"]
[SourceQuality "1"]
[TimeControl "5400+30"]

{[%evp 29,64,46,39,45,66,62,56,89,75,61,65,16,15,0,0,-9,-25,-66,-12,-83,-89,-334,-337,-333,-339,-337,-327,-323,-306,-349,-352,-345,-348,-354,-330,-569,-569]} 1. e4 {[%emt 0:07:15]} e5 {[%emt 0:00:09]} 2. Nf3 {[%emt 0:00:09]} Nc6 {[%emt 0:00:04]} 3. Bb5 {[%emt 0:00:07]} a6 {[%emt 0:00:14]} 4. Ba4 {[%emt 0:00:06]} Nf6 {[%emt 0:00:04]} 5. O-O {[%emt 0:00:09]} Be7 {[%emt 0:00:05]} 6. Re1 {[%emt 0:00:08]} b5 {[%emt 0:00:05]} 7. Bb3 {[%emt 0:00:05]} O-O {[%emt 0:00:05]} 8. c3 {[%emt 0:00:07]} d5 {[%emt 0:00:08]} 9. exd5 {[%emt 0:00:09]} Nxd5 {[%emt 0:00:04]} 10. Nxe5 {[%emt 0:00:08]} Nxe5 {[%emt 0:00:03]} 11. Rxe5 {[%emt 0:00:08]} c6 {[%emt 0:00:03]} 12. d3 {[%emt 0:00:09]} Bd6 {[%emt 0:00:05]} 13. Re1 {[%emt 0:00:07]} Qh4 {[%emt 0:00:15]} 14. g3 {[%emt 0:00:25]} Qh3 {[%emt 0:00:05]} 15. Re4 {[%emt 0:00:15]} Nf6 {[%emt 0:00:40]} 16. Rh4 {[%emt 0:00:49] C89: Closed Ruy Lopez: Marshall Attack.} Qf5 {[%emt 0:00:15]} 17. Nd2 $1 {[%emt 0:02:07]} Ng4 $1 {[%emt 0:02:02][%mdl 4] is now more promising than 17...g5.} 18. f3 {[%emt 0:17:56] White is slightly better.} Ne3 {[%emt 0:01:03]} 19. Qe2 {[%emt 0:01:55]} Nd5 $1 {[%emt 0:00:07][%cal Be3d5,Bd5b4,Bb4d3][%mdl 32]} 20. Nf1 {[%emt 0:11:54]} (20. Ne4 $14 Be7 21. g4) 20... Qg6 $11 {[%emt 0:02:56] [#]} 21. c4 $146 {[%emt 0:06:19]} ({Predecessor:} 21. Qf2 Bf5 22. Ne3 Nxe3 23. Bxe3 Be7 24. Rd4 Rae8 25. Re1 Bc5 26. Rf4 Bd6 27. Re4 Bxe4 28. fxe4 {½-½ (58) Santos Latasa,J (2600)-Krysa,L (2531) Barbera del Valles 2020}) 21... Nb4 {[%emt 0:19:20]} 22. Ne3 $132 {[%emt 0:06:33][%mdl 2048] White is fighting back} Nxd3 {[%emt 0:07:40]} 23. cxb5 {[%emt 0:01:44] [#] Threatens to win with Bc2.} axb5 {[%emt 0:13:10]} (23... Re8 $15 24. Rd4 (24. bxc6 $2 {perishes.} Bxg3 25. hxg3 Qxg3+ 26. Kf1 Qxh4 $19) 24... Bf5) 24. Bd2 {[%emt 0:02:52]} (24. Bc2 $11 {remains equal.} Nxc1 25. Rxc1) 24... Re8 $17 {[%emt 0:06:15][%cal Od6g3] White must now prevent ...Bxg3! Black is more active.} 25. Kh1 $2 {[%emt 0:06:28] Loses the game.} (25. Bc2 $17 {is a better defense.} Bf5 26. Kf1 (26. Rd4 $2 Nf4 $19)) 25... Bc5 $19 {[%emt 0:07:07][%cal Bd6c5,Bc5b6,Bb6d8][%mdl 32]} (25... Nxb2 26. Rc1 $17) 26. Bc2 {[%emt 0:09:54]} Bf5 {[%emt 0:00:24]} 27. g4 {[%emt 0:07:22] [#]} Nf2+ $1 {[%emt 0:01:13][%mdl 512]} 28. Qxf2 {[%emt 0:00:04]} Bxc2 {[%emt 0:00:03]} 29. Rh5 {[%emt 0:00:50]} Bb6 {[%emt 0:05:24]} 30. Re1 {[%emt 0:00:17]} f5 {[%emt 0:11:30][%cal Bf7f5,Bf5g4][%mdl 32]} ({Weaker is} 30... Rxa2 31. Nxc2 Rxe1+ 32. Qxe1 $16) 31. Qh4 {[%emt 0:11:39][%cal Rg4f5]} fxg4 {[%emt 0:02:07]} 32. Rg5 $2 {[%emt 0:03:42]} (32. Qxg4 Ra4 33. b4 Qxg4 34. Nxg4 Rxe1+ 35. Bxe1) 32... Bd8 {[%emt 0:01:24] Weighted Error Value: White=0.51/Black=0.06 (flawless)} 0-1

[Event "US Masters 2022"]
[Site "Charlotte"]
[Date "2022.11.26"]
[Round "5.12"]
[White "Yoo, Christopher Woojin"]
[Black "Fus, Jakub"]
[Result "1-0"]
[ECO "A14"]
[WhiteElo "2573"]
[BlackElo "2427"]
[Annotator "TA"]
[PlyCount "91"]
[EventDate "2022.11.23"]
[EventType "swiss"]
[EventCountry "USA"]
[SourceTitle "playchess.com"]
[Source "ChessBase"]
[SourceQuality "1"]
[TimeControl "5400+30"]

{[%evp 18,91,3,0,14,10,17,9,10,4,13,12,37,34,33,50,29,31,34,34,34,31,29,37,37,34,43,22,52,39,73,52,73,73,73,73,73,73,80,80,87,87,137,151,177,176,150,177,137,164,340,330,393,394,391,389,547,395,998,941,585,1142,1085,1068,876,648,585,548,1308,1142,2053,1404,29976,29977,6202,4677]} 1. Nf3 {[%emt 0:00:04]} d5 {[%emt 0:05:05]} 2. c4 {[%emt 0:00:18]} e6 {[%emt 0:01:04]} 3. g3 {[%emt 0:00:23]} Nf6 {[%emt 0:02:00]} 4. Bg2 {[%emt 0:00:13]} Be7 {[%emt 0:02:12]} 5. O-O {[%emt 0:00:21]} O-O {[%emt 0:00:07]} 6. d3 {[%emt 0:01:58]} c5 {[%emt 0:04:06]} 7. b3 {[%emt 0:00:08]} Nc6 {[%emt 0:00:41]} 8. e3 {[%emt 0:00:26]} b6 {[%emt 0:05:28]} 9. Bb2 {[%emt 0:01:35]} Bb7 {[%emt 0:00:10]} 10. Nc3 {[%emt 0:04:18]} dxc4 {[%emt 0:05:54] A14: English Opening: 1...e6 with b3 by White.} 11. dxc4 {[%emt 0:03:01][%cal Of3e5]} Qc7 {[%emt 0:17:01]} 12. Nb5 {[%emt 0:03:47]} Qb8 {[%emt 0:00:53] [#] The position is equal.} 13. Ne5 $146 {[%emt 0:12:51]} ({Predecessor:} 13. Qe2 a6 14. Nc3 Rd8 15. Rfd1 Qc7 16. Rxd8+ Rxd8 17. Rd1 Rxd1+ 18. Qxd1 Nd8 19. Qd3 {½-½ (39) Visier Segovia,F (2320)-Zabala Ordonez,A Spain 1993}) 13... Nxe5 {[%emt 0:15:53]} 14. Bxe5 {[%emt 0:00:48]} Qc8 {[%emt 0:05:36]} 15. Bxf6 {[%emt 0:05:50]} gxf6 {[%emt 0:00:30]} 16. Qg4+ {[%emt 0:05:42]} Kh8 {[%emt 0:00:05]} 17. Rad1 {[%emt 0:00:05]} Bxg2 {[%emt 0:00:44]} 18. Kxg2 {[%emt 0:00:05]} a6 {[%emt 0:02:58]} 19. Nc3 {[%emt 0:05:58]} Qb7+ {[%emt 0:05:24]} 20. Qf3 {[%emt 0:02:49]} Qxf3+ {[%emt 0:01:20]} 21. Kxf3 {[%emt 0:01:12] Hoping for Rd7.} Rfd8 {[%emt 0:00:05] Prevents Rd7.} 22. g4 {[%emt 0:01:59]} Bd6 {[%emt 0:00:30]} 23. Ne4 {[%emt 0:01:17]} Be5 {[%emt 0:02:04]} 24. Ke2 {[%emt 0:02:00]} Kg7 {[%emt 0:00:06]} 25. f4 {[%emt 0:00:29] White now steadily converts the win.} Bc7 {[%emt 0:00:07]} 26. h4 {[%emt 0:02:31] White is more active.} Rxd1 {[%emt 0:02:24]} 27. Rxd1 $16 {[%emt 0:00:38][%mdl 4096] Endgame KRB-KRN} Rd8 {[%emt 0:00:05] Inhibits Rd7.} 28. Rf1 {[%emt 0:02:50]} Rd7 {[%emt 0:02:25]} 29. Ng3 {[%emt 0:03:12]} Kf8 {[%emt 0:05:10] [#]} (29... Kg6 $142) 30. Nh5 $1 {[%emt 0:01:36]} Ke7 {[%emt 0:00:37]} 31. g5 {[%emt 0:03:53]} f5 {[%emt 0:00:48]} 32. Nf6 {[%emt 0:01:31]} Rd8 {[%emt 0:00:05] [#]} 33. Rd1 $1 {[%emt 0:00:57] Against h6} ({Don't take} 33. Nxh7 $6 Rh8 $14) 33... Bd6 $2 {[%emt 0:00:03]} (33... Rxd1 {was worth a try.} 34. Kxd1 h6) 34. Kf3 $18 {[%emt 0:02:17]} ({Not} 34. Nxh7 Rh8 $14) 34... h6 {[%emt 0:01:35]} 35. e4 {[%emt 0:02:34]} hxg5 {[%emt 0:03:46]} 36. fxg5 {[%emt 0:01:06] h5 is the strong threat.} fxe4+ {[%emt 0:00:07]} (36... Rc8 $142 37. exf5 exf5 38. Nd5+ Ke6 39. Nxb6 Rh8 40. Re1+ Be5) 37. Kxe4 {[%emt 0:03:56] Threatens to win with h5.} Kf8 $2 {[%emt 0:01:11]} (37... Bc7 38. Rxd8 Bxd8) 38. h5 {[%emt 0:00:29][%cal Bh4h5,Bh5h6][%mdl 32]} Be7 {[%emt 0:00:38]} 39. Rxd8+ {[%emt 0:00:20]} Bxd8 {[%emt 0:00:05] KB-KN} 40. Nd7+ {[%emt 0:00:09]} Kg7 {[%emt 0:01:06]} 41. Kf4 {[%emt 0:01:02]} Bc7+ {[%emt 0:00:26]} 42. Kg4 {[%emt 0:00:16] Black must now prevent h6+.} Bd8 {[%emt 0:00:18]} 43. h6+ {[%emt 0:00:22]} Kg8 {[%emt 0:00:21]} 44. Kh5 {[%emt 0:00:17]} Kh7 {[%emt 0:00:06]} 45. Ne5 {[%emt 0:00:11]} Kg8 {[%emt 0:00:36]} 46. g6 {[%emt 0:00:05] Weighted Error Value: White=0.16 (very precise) /Black=0.47} 1-0